bitfinex-derivatives/quotes_ETHF0:USTF0_20241104
["timestamp","ask_amount","ask_price","bid_price","bid_amount"]
[1730723866723,0.40478,2472.4,2472.3,0.40477]
[1730723866925,7.3774115,2472.6,2472.2,0.5825]
[1730723867124,0.40478,2472.3,2472.2,0.98728]
[1730723867534,0.40478,2472.3,2472.2,0.5825]
[1730723868133,0.40478,2472.3,2472.2,0.9873]
[1730723868528,0.40477,2472.4,2472.3,0.40477]
[1730723869325,0.40478,2472.3,2472.2,0.98729]
[1730723869534,7.3774215,2472.6,2472.2,0.5825]
[1730723869730,0.40478,2472.4,2472.3,0.40477]
[1730723870032,3.1577715,2472.4,2472.1,1.161]
[1730723870234,0.4048,2472.2,2472.1,1.56581]
[1730723870424,0.4048,2472.2,2472.0,3.7503]
[1730723870425,0.5622,2472.3,2472.0,3.7503]
[1730723870624,0.40481,2472.1,2472.0,3.61262]
[1730723872431,0.40481,2472.1,2472.0,0.40482]
[1730723872729,2.31736,2472.3,2471.9,0.5779]
[1730723872928,0.40483,2472.0,2471.9,0.5779]
[1730723873135,41.20483,2472.0,2471.9,0.5779]
[1730723873746,0.40485,2471.9,2471.8,0.5924]
[1730723873930,0.40485,2471.9,2471.8,0.99726]
[1730723874131,0.40485,2471.9,2471.8,0.5924]
[1730723875031,41.8121,2472.0,2471.6,1.1188]
[1730723875239,0.40488,2471.7,2471.6,2.05528]
[1730723875927,0.40488,2471.8,2471.7,0.40486]
[1730723877134,0.40488,2471.7,2471.6,2.05528]
[1730723877638,0.40488,2471.7,2471.6,1.1154]
[1730723878335,7.6082515,2471.7,2471.6,1.1154]
[1730723878532,7.6082515,2471.7,2471.4,0.9456]
[1730723878533,0.40492,2471.5,2471.4,0.9456]
[1730723880233,0.40497,2471.2,2471.0,3.2078]
[1730723880438,3.1577715,2471.4,2471.1,1.1647]
[1730723880628,3.2078,2471.5,2471.4,0.40493]
[1730723880829,3.61271,2471.5,2471.4,0.40493]
[1730723881340,0.40494,2471.4,2471.3,0.40494]
[1730723881639,0.40495,2471.3,2471.2,0.40495]
[1730723882937,0.40496,2471.2,2471.1,4.77747]
[1730723883832,0.40496,2471.2,2471.1,1.56967]
[1730723884636,3.5627315,2471.3,2471.2,0.40496]
[1730723885136,3.1577715,2471.3,2471.1,1.1647]
[1730723885341,0.40496,2471.2,2471.1,1.56968]
[1730723885743,0.40496,2471.2,2471.1,1.1647]
[1730723885938,0.40496,2471.2,2470.9,0.40501]
[1730723885939,0.40501,2471.0,2470.9,0.40501]
[1730723886142,7.2049715,2471.1,2470.5,1.1269]
[1730723886336,3.5628115,2470.8,2470.7,0.40503]
[1730723886537,3.1577715,2470.8,2470.7,0.40504]
[1730723886738,3.1577715,2470.8,2470.5,1.1269]
[1730723886739,40.8,2470.8,2470.6,1.41771]
[1730723886934,40.8,2470.8,2470.7,0.40504]
[1730723888445,41.20503,2470.8,2470.7,0.40504]
[1730723888647,40.8,2470.8,2470.7,0.40504]
[1730723890853,3.2078,2471.2,2471.0,0.40498]
[1730723890854,0.40498,2471.1,2471.0,0.40498]
[1730723891260,40.8,2471.1,2471.0,0.40498]
[1730723891454,3.5627215,2471.3,2471.2,0.40496]
[1730723891955,40.8,2471.3,2471.2,0.40496]
[1730723892658,3.2078,2471.5,2471.4,0.40493]
[1730723893259,3.61271,2471.5,2471.4,0.40493]
[1730723893653,3.2078,2471.5,2471.4,0.40493]
[1730723894253,6.3655715,2471.8,2471.3,1.1112]
[1730723894458,6.7704415,2471.8,2471.7,0.40488]
[1730723894963,47.5704415,2471.8,2471.7,0.40488]
[1730723895256,47.1655715,2471.8,2471.7,0.40488]
[1730723895462,40.8,2471.8,2471.7,0.40488]
[1730723895755,41.20486,2471.8,2471.7,0.40488]
[1730723896663,0.40491,2471.6,2471.5,0.40489]
[1730723897160,44.9699315,2471.8,2471.4,3.2078]
[1730723897161,48.1777315,2471.8,2471.4,3.2078]
[1730723897360,48.1777315,2471.8,2471.4,3.61271]
[1730723897361,0.40491,2471.5,2471.4,3.61271]
[1730723898157,0.40491,2471.5,2471.4,3.2078]
[1730723898358,6.3655715,2471.5,2471.3,0.5744]
[1730723898666,6.3655715,2471.5,2471.1,0.40496]
[1730723898667,0.40498,2471.2,2471.1,0.40496]
[1730723898859,0.40498,2471.2,2471.0,0.5501]
[1730723898860,0.40498,2471.1,2471.0,1.53138]
[1730723899164,0.40498,2471.1,2471.0,0.5763]
[1730723899358,0.40498,2471.1,2470.9,1.46011165]
[1730723899359,0.40499,2471.0,2470.9,1.05511165]
[1730723899762,0.40499,2471.0,2470.9,1.46012165]
[1730723900067,41.20499,2471.0,2470.9,0.40501]
[1730723900363,40.8,2471.0,2470.9,0.40501]
[1730723900657,41.20499,2471.0,2470.9,0.40501]
[1730723900858,40.8,2471.0,2470.9,0.61022887]
[1730723901063,40.8,2471.0,2470.9,0.61022762]
[1730723902661,40.8,2471.0,2470.9,7.86522762]
[1730723903268,40.8,2471.0,2470.9,7.66001]
[1730723903466,7.3777315,2471.8,2470.9,7.46026009]
[1730723903768,7.3777315,2471.8,2471.0,0.20526009]
[1730723903957,0.40491,2471.6,2471.5,0.4049]
[1730723904670,41.2049,2471.7,2471.6,0.40489]
[1730723904862,0.40491,2471.6,2471.5,0.4049]
[1730723906474,40.8,2471.7,2471.3,1.01237]
[1730723906674,41.20489,2471.7,2471.6,0.40489]
[1730723907568,40.8,2471.7,2471.6,0.40489]
[1730723907782,40.8,2471.7,2471.6,0.6103146]
[1730723908962,40.8,2471.7,2471.6,0.93911316]
[1730723909169,40.8,2471.7,2471.6,4.98471316]
[1730723909773,40.8,2471.7,2471.6,0.93911316]
[1730723910382,41.20488,2471.7,2471.6,0.6103146]
[1730723910574,44.3626515,2471.7,2471.6,0.6103146]
[1730723910974,40.8,2471.7,2471.6,0.6103146]
[1730723911975,41.20488,2471.7,2471.6,0.6103146]
[1730723912282,40.8,2471.7,2471.6,0.61053317]
[1730723912666,41.20488,2471.7,2471.6,0.61053317]
[1730723913472,41.20488,2471.7,2471.6,0.20564317]
[1730723913674,0.40489,2471.6,2471.5,3.2078]
[1730723913877,0.40489,2471.6,2471.5,3.4135198]
[1730723915073,4.45129,2471.6,2471.5,3.4135198]
[1730723916380,4.45129,2471.6,2471.5,0.2057198]
[1730723916780,0.40496,2471.2,2471.1,0.40497]
[1730723916977,3.5627315,2471.2,2471.1,0.5354961]
[1730723917171,7.6091315,2471.2,2471.1,0.40498]
[1730723917375,7.6091315,2471.2,2471.1,0.94060768]
[1730723917680,48.4091315,2471.2,2471.1,0.61096688]
[1730723918181,48.4091315,2471.2,2471.1,0.20598688]
[1730723918571,48.4091315,2471.2,2471.1,0.61096688]
[1730723919380,48.4091315,2471.2,2471.1,0.20598688]
[1730723919775,45.25136,2471.2,2471.1,0.20598688]
[1730723919980,45.25136,2471.2,2471.1,4.98709457]
[1730723919981,40.8,2471.2,2471.1,4.98709457]
[1730723920183,40.8,2471.2,2471.1,5.54995068]
[1730723920479,0.40491,2471.6,2471.5,0.40491]
[1730723920678,0.40491,2471.6,2471.5,0.61089688]
[1730723920874,41.20491,2471.6,2471.5,0.61093396]
[1730723922275,41.20491,2471.6,2471.5,0.94069457]
[1730723922476,41.20491,2471.6,2471.5,0.61093396]
[1730723923185,41.20491,2471.6,2471.5,1.47478458]
[1730723924279,41.20491,2471.6,2471.5,0.93901]
[1730723924481,41.20491,2471.6,2471.5,1.47486293]
[1730723924685,41.20491,2471.6,2471.5,1.47486085]
[1730723924884,41.20491,2471.6,2471.5,1.47485933]
[1730723925081,41.20491,2471.6,2471.5,1.14507765]
[1730723925277,40.8,2471.6,2471.5,1.47485793]
[1730723925481,41.20489,2471.6,2471.5,1.47485793]
[1730723926579,41.20489,2471.6,2471.5,0.74016765]
[1730723926775,41.20489,2471.6,2471.5,0.20606765]
[1730723928482,41.20489,2471.6,2471.5,0.61097765]
[1730723928684,41.20489,2471.6,2471.5,0.20606765]
[1730723928878,41.20489,2471.6,2471.5,0.61097765]
[1730723929383,41.20489,2471.6,2471.5,0.20606765]
[1730723930997,40.8,2471.6,2471.4,0.93972]
[1730723931198,0.40491,2471.5,2471.4,0.93972]
[1730723931490,41.2049,2471.6,2471.5,0.40491]
[1730723931692,41.2049,2471.6,2471.5,0.94085635]
[1730723931693,40.8,2471.6,2471.5,0.94085635]
[1730723932286,41.20489,2471.6,2471.5,0.94085635]
[1730723934496,41.20489,2471.6,2471.5,0.40491]
[1730723934794,41.20489,2471.6,2471.5,0.94104579]
[1730723935298,41.20489,2471.6,2471.5,1.50480777]
[1730723935588,40.8,2471.6,2471.5,0.94104579]
[1730723935793,40.8,2471.6,2471.5,1.50480713]
[1730723936985,40.8,2471.6,2471.5,5.55120713]
[1730723937192,40.8,2471.6,2471.5,8.75900713]
[1730723937391,40.8,2471.6,2471.5,9.6611984]
[1730723938993,40.8,2471.6,2471.5,11.50627826]
[1730723939186,40.8,2471.6,2471.5,12.56684108]
[1730723939392,40.8,2471.6,2471.5,12.56686858]
[1730723939994,40.8,2471.6,2471.5,9.35906858]
[1730723940295,41.20489,2471.6,2471.5,2.4069984]
[1730723940495,41.20489,2471.6,2471.5,1.50486702]
[1730723940887,41.20489,2471.6,2471.5,0.94104579]
[1730723941183,41.20489,2471.6,2471.5,1.50517344]
[1730723942790,41.20489,2471.6,2471.5,1.10026344]
[1730723943186,44.3626615,2471.6,2471.5,1.10026344]
[1730723943390,44.3626615,2471.6,2471.5,0.5362486]
[1730723943596,44.4939615,2471.6,2471.5,0.5362486]
[1730723943994,44.0890715,2471.6,2471.5,0.53628616]
[1730723944199,44.4939615,2471.6,2471.5,0.53628616]
[1730723947694,1.0123,2471.5,2471.1,1.48806]
[1730723947891,1.0123,2471.5,2471.2,0.53652337]
[1730723947892,2.1668,2471.5,2471.2,0.53652337]
[1730723948101,0.40494,2471.3,2471.2,0.40495]
[1730723948303,0.40494,2471.4,2471.3,0.40492]
[1730723948603,0.40494,2471.4,2471.3,2.03356522]
[1730723948804,40.8,2471.6,2471.3,1.62864522]
[1730723949002,41.2049,2471.6,2471.5,0.40491]
[1730723949197,41.2049,2471.6,2471.5,1.50565522]
[1730723949713,40.8,2471.6,2471.5,1.50565522]
[1730723950004,40.8,2471.6,2471.5,2.40847286]
[1730723951004,40.8,2471.6,2471.5,3.55437286]
[1730723951303,0.40485,2471.9,2471.5,7.19622377]
[1730723951507,3.61263,2472.0,2471.9,0.40485]
[1730723951805,44.41263,2472.0,2471.9,0.9413547]
[1730723952004,44.41263,2472.0,2471.9,1.50572186]
[1730723952005,40.8,2472.0,2471.9,1.50572186]
[1730723952196,41.20483,2472.0,2471.9,1.50572186]
[1730723952400,40.8,2472.0,2471.9,2.06612186]
[1730723952605,41.20483,2472.0,2471.9,2.06612186]
[1730723952803,40.8,2472.0,2471.9,2.06612186]
[1730723953107,40.8,2472.0,2471.9,2.96911111]
[1730723953302,40.8,2472.0,2471.9,2.06612186]
[1730723954905,40.8,2472.0,2471.9,1.52945749]
[1730723955105,41.20483,2472.0,2471.9,2.06558669]
[1730723955407,40.8,2472.0,2471.9,2.06558669]
[1730723955607,41.20483,2472.0,2471.9,1.66073669]
[1730723955810,41.20483,2472.0,2471.9,0.5361292]
[1730723956006,45.25043,2472.0,2471.9,0.5361292]
[1730723956311,45.93653,2472.0,2471.9,0.5361292]
[1730723956500,45.93653,2472.0,2471.9,0.20617974]
[1730723957513,45.5317,2472.0,2471.8,3.2078]
[1730723957698,0.40485,2471.9,2471.8,3.2078]
[1730723958008,0.40485,2471.9,2471.8,3.74398936]
[1730723958697,0.40485,2471.9,2471.8,0.53618936]
[1730723960216,3.61265,2471.9,2471.8,0.53618936]
[1730723962005,0.40485,2471.9,2471.8,0.53618936]
[1730723962312,41.4861,2472.0,2471.7,0.40487]
[1730723962499,0.40486,2471.8,2471.7,0.40487]
[1730723962899,0.40486,2471.8,2471.7,1.50874963]
[1730723963706,0.40486,2471.8,2471.7,1.50881529]
[1730723964621,0.40486,2471.8,2471.7,1.10394529]
[1730723964808,3.61266,2471.8,2471.7,0.53612819]
[1730723965202,3.61266,2471.8,2471.7,0.94100819]
[1730723965515,3.61266,2471.8,2471.7,0.53612819]
[1730723965702,3.61266,2471.8,2471.7,0.94100819]
[1730723965899,3.61266,2471.8,2471.7,0.40488]
[1730723966119,3.61266,2471.8,2471.7,0.94126626]
[1730723966411,0.40486,2471.8,2471.7,0.94126626]
[1730723966914,0.40486,2471.8,2471.7,0.53638626]
[1730723969518,0.40486,2471.8,2471.7,0.941312]
[1730723971315,0.40486,2471.8,2471.7,1.50944435]
[1730723971516,0.40486,2471.8,2471.7,1.50945036]
[1730723972518,0.40486,2471.8,2471.7,1.50940383]
[1730723973023,0.40486,2471.8,2471.7,5.55500383]
[1730723973218,43.44740701,2472.0,2471.7,5.55500383]
[1730723973415,41.20485,2472.0,2471.9,0.40485]
[1730723973721,41.20485,2472.0,2471.9,0.94123547]
[1730723973923,41.20485,2472.0,2471.9,1.39753547]
[1730723974514,41.20485,2472.0,2471.9,1.96568679]
[1730723975123,40.8,2472.0,2471.9,1.96568679]
[1730723975328,40.8,2472.0,2471.9,6.92027448]
[1730723975822,40.8,2472.0,2471.9,6.01128679]
[1730723976223,40.8,2472.0,2471.9,4.90675]
[1730723976417,40.8,2472.0,2471.9,6.92031001]
[1730723978522,3.2078,2472.2,2471.9,9.62315325]
[1730723978737,3.2078,2472.2,2472.1,0.40481]
[1730723978919,3.6126,2472.2,2472.1,2.4181812]
[1730723979124,3.6126,2472.2,2472.1,1.50936734]
[1730723979624,44.4126,2472.2,2472.1,1.50936734]
[1730723979825,44.4126,2472.2,2472.1,0.40481]
[1730723980029,44.4126,2472.2,2472.1,1.50899469]
[1730723980916,44.0078,2472.2,2472.1,1.50899469]
[1730723981122,44.4126,2472.2,2472.1,1.50899469]
[1730723981524,41.2048,2472.2,2472.1,1.50899469]
[1730723982929,40.8,2472.2,2472.1,1.50899469]
[1730723983318,40.8,2472.2,2472.1,0.40481]
[1730723983630,41.2048,2472.2,2472.1,1.50871998]
[1730723983830,40.8,2472.2,2472.1,1.50871998]
[1730723984032,41.2048,2472.2,2472.1,1.50871998]
[1730723984324,40.8,2472.2,2472.1,1.50871998]
[1730723984534,41.2048,2472.2,2472.1,1.50871998]
[1730723986927,41.2048,2472.2,2472.1,0.40481]
[1730723987125,41.2048,2472.2,2472.1,1.50840894]
[1730723987331,41.2048,2472.2,2472.1,0.94078094]
[1730723987523,41.2048,2472.2,2472.1,1.50839131]
[1730723988030,40.8,2472.2,2472.1,1.50838183]
[1730723989025,41.2048,2472.2,2472.1,1.50838183]
[1730723990329,41.2048,2472.2,2472.1,0.40481]
[1730723990535,41.2048,2472.2,2472.1,1.5084004]
[1730723990834,41.2048,2472.2,2472.1,0.94078985]
[1730723991132,41.2048,2472.2,2472.1,1.50838871]
[1730723991731,40.8,2472.2,2472.1,1.50838871]
[1730723992733,41.2048,2472.2,2472.1,1.50838871]
[1730723993931,41.2048,2472.2,2472.1,1.50850063]
[1730723997338,41.2048,2472.2,2472.1,1.50872251]
[1730723999538,40.8,2472.2,2472.1,1.50872251]
[1730724000745,40.8,2472.2,2472.1,1.50866936]
[1730724000939,40.8,2472.2,2472.1,6.46188828]
[1730724001142,40.8,2472.2,2472.1,6.96806407]
[1730724001336,40.8,2472.2,2472.1,6.46188828]
[1730724002143,3.2078,2472.6,2472.1,6.56324458]
[1730724002340,3.61254,2472.6,2472.5,1.86269197]
[1730724002544,3.61253,2472.6,2472.5,0.53594644]
[1730724002745,48.45733,2472.6,2472.5,0.20610946]
[1730724002944,48.85383,2472.6,2472.5,0.20610946]
[1730724003144,44.4043,2472.6,2472.5,0.20613948]
[1730724003446,48.85383,2472.6,2472.5,0.20613948]
[1730724007657,52.01271224,2472.6,2472.5,0.20613948]
[1730724007950,0.40481,2472.2,2472.1,0.4048]
[1730724008144,0.40481,2472.2,2472.1,0.53604724]
[1730724008345,0.80121,2472.2,2472.1,0.53604724]
[1730724008846,41.60121,2472.2,2472.1,0.53604724]
[1730724009249,41.20481,2472.2,2472.1,0.94085724]
[1730724009747,41.20481,2472.2,2472.1,0.53604724]
[1730724009952,40.8,2472.2,2472.0,0.83412]
[1730724010250,0.40481,2472.1,2472.0,0.83412]
[1730724010453,0.40481,2472.2,2472.1,0.4048]
[1730724010653,0.40481,2472.2,2472.1,0.94097297]
[1730724010959,41.20481,2472.2,2472.1,0.94097297]
[1730724011353,40.8,2472.2,2472.1,1.50986153]
[1730724011650,40.8,2472.2,2472.1,6.46469702]
[1730724011853,0.40475,2472.5,2472.4,0.40476]
[1730724012052,0.40475,2472.5,2472.4,1.50982153]
[1730724012358,41.20475,2472.5,2472.4,1.50970953]
[1730724012755,41.20475,2472.5,2472.4,1.95880953]
[1730724012956,41.20475,2472.5,2472.4,1.39003297]
[1730724013457,41.20475,2472.5,2472.4,0.85386]
[1730724013753,41.20475,2472.5,2472.4,1.39000806]
[1730724014147,41.20475,2472.5,2472.4,1.95883395]
[1730724014350,41.20475,2472.5,2472.4,0.98524806]
[1730724015663,41.20475,2472.5,2472.4,1.39000806]
[1730724016052,41.20475,2472.5,2472.4,0.98524806]
[1730724016258,41.20475,2472.5,2472.4,1.39000806]
[1730724016462,47.89893211,2472.5,2472.4,0.53614806]
[1730724016649,45.24955,2472.5,2472.4,0.206187]
[1730724017158,44.8448,2472.5,2472.1,0.4048]
[1730724017355,0.40478,2472.3,2472.2,1.10582763]
[1730724018157,3.05706263,2472.3,2472.2,1.10582763]
[1730724020851,3.05706263,2472.3,2472.1,0.40481]
[1730724020852,0.4048,2472.2,2472.1,0.40481]
[1730724021049,0.4048,2472.2,2472.1,1.88596193]
[1730724021248,0.4048,2472.2,2472.1,2.42285933]
[1730724023265,0.40478,2472.3,2472.2,0.4048]
[1730724023563,0.40478,2472.3,2472.2,2.42284933]
[1730724024357,0.40478,2472.3,2472.2,0.94169223]
[1730724024664,0.40478,2472.3,2472.2,2.42303656]
[1730724025057,0.40478,2472.3,2472.2,2.01823656]
[1730724025263,3.05706263,2472.3,2472.2,1.10662201]
[1730724027063,3.05706263,2472.3,2472.2,2.42304671]
[1730724027259,3.05706263,2472.3,2472.2,2.01824671]
[1730724027457,3.05706263,2472.3,2472.2,1.10662201]
[1730724027856,3.05706263,2472.3,2472.2,1.10665673]
[1730724028959,3.05706263,2472.3,2472.2,1.51145673]
[1730724029257,3.05706263,2472.3,2472.2,1.10665673]
[1730724029459,3.05706263,2472.3,2472.2,1.1067248]
[1730724029675,3.05706263,2472.3,2472.2,1.5115248]
[1730724029863,3.05706263,2472.3,2472.2,2.42313911]
[1730724030768,2.65228263,2472.3,2472.2,2.42313911]
[1730724030958,2.65228263,2472.3,2472.2,2.92933823]
[1730724031163,2.65228263,2472.3,2472.2,1.44796359]
[1730724031467,3.05706263,2472.3,2472.2,2.92926468]
[1730724031863,2.65228263,2472.3,2472.2,2.92926468]
[1730724032363,3.05706263,2472.3,2472.2,2.92926468]
[1730724033066,2.65228263,2472.3,2472.2,2.92926468]
[1730724033263,0.40478,2472.3,2472.2,2.92926468]
[1730724033964,0.40478,2472.3,2472.2,1.44796286]
[1730724034164,0.40478,2472.3,2472.2,2.92847895]
[1730724034366,0.40478,2472.4,2472.3,0.40478]
[1730724034574,0.40478,2472.4,2472.3,3.32116056]
[1730724034871,0.40478,2472.4,2472.3,3.32094495]
[1730724035267,43.85703263,2472.5,2472.3,2.91616495]
[1730724035470,43.85703263,2472.5,2472.4,1.51107081]
[1730724035665,43.85703263,2472.5,2472.4,1.94847081]
[1730724036470,43.45228263,2472.5,2472.4,1.94847081]
[1730724036771,3.05698263,2472.8,2472.7,0.40471]
[1730724036966,2.65228263,2472.9,2472.8,0.4047]
[1730724037169,40.8,2472.9,2472.8,2.42180253]
[1730724037367,41.20468,2472.9,2472.8,2.42103572]
[1730724037567,40.8,2472.9,2472.8,1.51101081]
[1730724037767,40.8,2472.9,2472.8,7.92309856]
[1730724038172,40.8,2472.9,2472.8,3.87909856]
[1730724038666,40.8,2472.9,2472.8,11.13089856]
[1730724038870,40.8,2472.9,2472.8,12.69732611]
[1730724039071,40.8,2472.9,2472.8,14.10631018]
[1730724039265,40.8,2472.9,2472.8,13.82758656]
[1730724039666,40.8,2472.9,2472.8,16.62199718]
[1730724039864,3.2078,2473.4,2473.3,0.40462]
[1730724040067,3.6124,2473.4,2473.3,0.94158447]
[1730724040270,44.0078,2473.4,2473.3,0.94158447]
[1730724040672,40.8,2473.4,2473.3,0.94158447]
[1730724040875,40.8,2473.4,2473.3,6.44285503]
[1730724041278,40.8,2473.4,2473.3,0.94158447]
[1730724041977,41.2046,2473.4,2473.3,0.94158447]
[1730724042172,40.8,2473.4,2473.3,0.61112096]
[1730724042486,40.8,2473.4,2473.3,0.9400053]
[1730724042673,41.2046,2473.4,2473.3,0.9400053]
[1730724042973,40.8,2473.4,2473.3,0.61112096]
[1730724043379,41.2046,2473.4,2473.3,0.61112096]
[1730724043578,40.8,2473.4,2473.3,0.61112096]
[1730724044688,40.8,2473.4,2473.3,0.60998534]
[1730724044982,3.61234,2473.8,2473.3,8.1390911]
[1730724045179,3.61234,2473.8,2473.7,0.40455]
[1730724045180,0.40454,2473.8,2473.7,0.40455]
[1730724045383,0.40453,2473.9,2473.8,0.40452]
[1730724045585,41.20453,2473.9,2473.8,0.40452]
[1730724046382,40.8,2473.9,2473.8,0.40452]
[1730724047077,40.8,2473.9,2473.8,0.60960014]
[1730724047386,40.8,2473.9,2473.8,0.40452]
[1730724051881,40.8,2473.9,2473.8,0.86602]
[1730724053084,40.8,2473.9,2473.8,1.31582]
[1730724059074,44.0078,2473.9,2473.1,6.36507529]
[1730724059279,44.0078,2473.9,2473.7,0.40454]
[1730724059280,0.40454,2473.8,2473.7,0.40454]
[1730724059700,44.41233,2473.9,2473.8,0.40453]
[1730724060284,44.0078,2473.9,2473.5,0.4538]
[1730724060482,0.40455,2473.8,2473.7,0.40454]
[1730724061386,0.40454,2473.8,2473.7,0.40454]
[1730724066497,0.40456,2473.7,2473.6,0.40456]
[1730724067696,0.40455,2473.8,2473.7,0.40453]
[1730724068396,40.8,2473.9,2473.5,0.4538]
[1730724068397,42.25714082,2473.9,2473.5,0.4538]
[1730724068697,42.25714082,2473.9,2473.5,0.85837]
[1730724068698,0.40457,2473.6,2473.5,0.85837]
[1730724069590,0.40457,2473.6,2473.5,0.40457]
[1730724071903,43.26845082,2473.9,2473.4,3.665]
[1730724072092,41.20453,2473.9,2473.8,0.40453]
[1730724073002,41.20453,2473.9,2473.8,0.86813]
[1730724077398,42.66167082,2473.9,2473.8,0.4636]
[1730724077595,0.40457,2473.7,2473.6,0.40455]
[1730724077797,1.45714082,2473.7,2473.6,0.20515204]
[1730724078006,1.01143,2473.6,2473.2,0.4475]
[1730724078215,3.6124,2473.4,2473.3,0.20519058]
[1730724078405,3.2078,2473.4,2473.2,0.4475]
[1730724078707,3.2078,2473.4,2473.3,0.40462]
[1730724078708,3.61241,2473.4,2473.3,0.40462]
[1730724079213,0.40461,2473.4,2473.3,0.61002075]
[1730724080312,4.21922,2473.7,2473.3,0.20540075]
[1730724080609,0.40458,2473.6,2473.5,0.40457]
[1730724080911,0.40458,2473.6,2473.5,0.60997075]
[1730724081110,0.40458,2473.6,2473.5,1.06574467]
[1730724082218,0.40458,2473.6,2473.5,1.39497965]
[1730724083413,0.40458,2473.6,2473.5,0.99040965]
[1730724084412,0.40458,2473.6,2473.5,0.99104864]
[1730724084906,0.40458,2473.6,2473.5,0.53534864]
[1730724084907,9.11192082,2473.6,2473.5,0.53534864]
[1730724085100,9.11192082,2473.6,2473.5,0.20587957]
[1730724085710,9.50782082,2473.6,2473.5,0.20587957]
[1730724087818,0.4046,2473.4,2473.3,0.40462]
[1730724088140,0.4046,2473.4,2473.3,0.94014167]
[1730724091422,0.4046,2473.4,2473.3,0.9400773]
[1730724092316,0.4046,2473.4,2473.3,0.5354573]
[1730724092518,0.4046,2473.4,2473.3,0.20592136]
[1730724092917,4.8439,2473.4,2473.3,0.20592136]
[1730724093115,0.8007,2473.4,2473.3,0.20592136]
[1730724093313,0.40467,2473.0,2472.9,1.3641]
[1730724093516,0.40467,2473.0,2472.9,2.87127397]
[1730724094623,0.40467,2473.1,2473.0,0.40465]
[1730724094819,0.40467,2473.1,2473.0,0.94003054]
[1730724096920,0.40464,2473.3,2473.2,0.40462]
[1730724097120,0.40464,2473.3,2473.2,0.93987862]
[1730724097324,0.40464,2473.3,2473.2,0.93738224]
[1730724097627,0.40461,2473.4,2473.3,0.4046]
[1730724097926,0.40461,2473.4,2473.3,1.3567719]
[1730724101332,0.40461,2473.4,2473.3,0.8256]
[1730724101533,0.40461,2473.4,2473.3,1.35698974]
[1730724102838,0.40461,2473.4,2473.3,1.35714903]
[1730724103334,0.40461,2473.4,2473.3,1.92430502]
[1730724107044,0.40461,2473.4,2473.3,1.51970502]
[1730724107245,0.40461,2473.4,2473.3,0.95254903]
[1730724107544,0.40461,2473.4,2473.3,0.53154903]
[1730724108048,41.20461,2473.4,2473.3,0.53154903]
[1730724108433,40.8,2473.4,2473.1,0.40465]
[1730724108637,0.40463,2473.2,2473.1,0.85515]
[1730724108834,0.40463,2473.2,2473.1,1.95464986]
[1730724109248,41.20463,2473.2,2473.1,1.95464986]
[1730724109551,41.20463,2473.2,2473.1,1.54999986]
[1730724109744,45.24783,2473.2,2473.1,0.98242729]
[1730724109951,45.24783,2473.2,2473.1,0.53192729]
[1730724111240,41.20463,2473.2,2473.1,0.93657729]
[1730724111440,41.20463,2473.2,2473.1,1.50409693]
[1730724111946,41.20463,2473.2,2473.1,1.50409064]
[1730724113150,41.20463,2473.2,2473.1,1.95319064]
[1730724113855,40.8,2473.2,2473.1,1.95319064]
[1730724114052,41.20463,2473.2,2473.1,1.95319064]
[1730724114750,40.8,2473.2,2473.1,1.95319064]
[1730724114949,40.8,2473.2,2473.1,2.86129619]
[1730724115158,41.20463,2473.2,2473.1,1.95319064]
[1730724115452,41.20463,2473.2,2473.1,1.54872988]
[1730724116044,41.20463,2473.2,2473.1,1.09962988]
[1730724116245,48.45563,2473.2,2473.1,0.53192729]
[1730724116641,48.45563,2473.2,2473.1,0.20456381]
[1730724116847,48.45563,2473.2,2473.1,0.53210064]
[1730724118346,48.051,2473.2,2473.0,0.82376]
[1730724118546,44.41243,2473.2,2473.1,0.53223873]
[1730724118750,44.41243,2473.2,2473.1,0.20468359]
[1730724119058,48.45563,2473.2,2473.1,0.53224253]
[1730724119251,44.41243,2473.2,2473.1,0.53224253]
[1730724120156,41.20463,2473.2,2473.1,0.53224253]
[1730724120355,44.41243,2473.2,2473.1,0.53224253]
[1730724121353,47.06471263,2473.2,2473.1,0.53224253]
[1730724121558,44.41243,2473.2,2473.1,0.53224253]
[1730724121759,47.06471263,2473.2,2473.1,0.53224253]
[1730724123061,43.85691263,2473.2,2473.1,0.53224253]
[1730724123558,48.52228198,2473.2,2473.1,0.53224253]
[1730724123755,45.31448198,2473.2,2473.1,0.53224253]
[1730724124153,48.52228198,2473.2,2473.1,0.53224253]
[1730724124364,48.52228198,2473.2,2473.1,0.53257144]
[1730724126060,45.31448198,2473.2,2473.1,0.53257144]
[1730724126262,48.52228198,2473.2,2473.1,0.53257144]
[1730724127556,48.52228198,2473.2,2473.1,0.20481154]
[1730724127755,48.52228198,2473.2,2473.0,0.4191]
[1730724127756,0.40465,2473.1,2473.0,0.82377]
[1730724127957,0.40465,2473.1,2473.0,1.717083]
[1730724128161,0.40465,2473.1,2473.0,1.92031003]
[1730724128661,0.40465,2473.1,2473.0,1.35222142]
[1730724129159,0.40465,2473.1,2473.0,1.92031369]
[1730724129364,3.61245,2473.1,2473.0,1.92031369]
[1730724131065,0.40465,2473.1,2473.0,1.92031369]
[1730724131263,1.86221935,2473.1,2473.0,1.51564369]
[1730724131560,1.86221935,2473.1,2473.0,0.94755142]
[1730724131859,1.86221935,2473.1,2473.0,1.51555538]
[1730724132063,1.86221935,2473.1,2473.0,1.51556044]
[1730724132257,1.86221935,2473.1,2473.0,0.94755142]
[1730724133065,4.51450198,2473.1,2473.0,0.94755142]
[1730724133567,1.86221935,2473.1,2473.0,0.94755142]
[1730724133762,4.51450198,2473.1,2473.0,0.52845142]
[1730724133964,8.55770198,2473.1,2473.0,0.20322703]
[1730724134270,0.4047,2472.8,2472.7,0.4387]
[1730724134561,7.72145734,2472.8,2472.7,0.4387]
[1730724134763,0.40471,2472.7,2472.6,0.4362]